Cogmind - Beta 11 X6 @@@ ROGUE MODE // 2021.07.21 @ 22:27:47 Player: Amy! Result: Destroyed by S-10 Pest with Light Assault Rifle Performance ------------- Evolutions (1) 500 Regions Visited (2) 400 Robots Destroyed (0) 0 Value Destroyed (0) 0 Prototype IDs (0) 0 Alien Tech Used (0) 0 Bonus (200) 200 TOTAL SCORE: 1100 Bonus ------- Pacifist 200 Cogmind --------- Core Integrity 0/400 Matter 295/300 Energy 100/100 System Corruption 0% Temperature Cool (0) Movement Core (50) Location -9/Materials Parts ------- > --- POWER (1) -------- (None) > --- PROPULSION (3) --- (None) > --- UTILITY (3) ------ Propulsion Shielding > --- WEAPON (2) ------- (None) > --- INVENTORY (5) ---- Ion Engine Heat Sink Cooling System Small Storage Unit Peak State ------------ > --- POWER ------------ Ion Engine > --- PROPULSION ------- (None) > --- UTILITY ---------- Propulsion Shielding > --- WEAPON ----------- (None) > --- INVENTORY -------- Ion Engine Heat Sink Cooling System Small Storage Unit [Rating: 2] Favorites ----------- Power Ion Engine Engine Ion Engine Propulsion None Utility Propulsion Shielding Protection Propulsion Shielding Weapon None Build | -11 -10 -9 ------- Run | Scr Mat Mat Slots Evolved 2 | . . 2 Power . | . . . Propulsion 1 | . . 1 Utility 1 | . . 1 Weapon . | . . . Parts Attached 3 | 1 . 2 Power 2 | 1 . 1 Engine 2 | 1 . 1 Core . | . . . Reactor . | . . . Propulsion . | . . . Treads . | . . . Leg . | . . . Wheel . | . . . Hover . | . . . Flight . | . . . Utility 1 | . . 1 Device . | . . . Storage . | . . . Processor . | . . . Hackware . | . . . Protection 1 | . . 1 Artifact . | . . . Weapon . | . . . Energy Gun . | . . . Energy Cannon . | . . . Ballistic Gun . | . . . Ballistic Cannon . | . . . Launcher . | . . . Special Weapon . | . . . Impact Weapon . | . . . Slashing Weapon . | . . . Piercing Weapon . | . . . Special Melee Weapon . | . . . Unidentified Prototypes . | . . . Parts Lost 1 | . . 1 Power 1 | . . 1 Propulsion . | . . . Utility . | . . . Weapon . | . . . Highest Loss Streak 1 | . . 1 Average Slot Usage (%) 4 | . . 6 Protection 3 | . . 5 Naked Turns 131 | . 59 72 Heaviest Build 5 | 5 . 1 Greatest Support 3 | 3 3 3 Greatest Overweight (x) 1 | 1 . . Average Overweight (x) . | . . . Largest Inventory Capacity 5 | 5 5 5 Average Capacity 5 | 5 5 5 Most Carried 5 | 3 5 5 Average Carried 4 | 1 4 4 Final Capacity 5 | 5 5 5 Final Carried 5 | 3 5 4 Class Distribution -------------------- 100% | Mutant Dominant Class ---------------- Mutant | -10/Materials Mutant | -9/Materials Resources | -11 -10 -9 ----------- Run | Scr Mat Mat Matter Collected 220 | 210 . 10 Remotely . | . . . Salvage Created . | . . . Parts . | . . . Haulers Intercepted . | . . . Recyclers Shooed . | . . . Parts Field Recycled . | . . . Retrieved Matter . | . . . Parts Self-Destructed . | . . . Prevented . | . . . Kills | -11 -10 -9 ------- Run | Scr Mat Mat Combat Hostiles Destroyed . | . . . Classes Destroyed . | . . . Best Kill Streak . | . . . Combat Bots Only . | . . . Max Kills in Single Turn . | . . . Gunslinging . | . . . Exploded . | . . . Melee . | . . . Uniques/NPCs Destroyed . | . . . Combat | -11 -10 -9 -------- Run | Scr Mat Mat Damage Taken 470 | . . 470 Core 403 | . . 403 Absorbed by Shields . | . . . Core Remaining (%) 100 | 100 100 . Volleys Fired . | . . . Largest . | . . . Hottest . | . . . Shots Fired . | . . . Gun . | . . . Cannon . | . . . Launcher . | . . . Special . | . . . Kinetic . | . . . Thermal . | . . . Explosive . | . . . Electromagnetic . | . . . Robot Hit Streak . | . . . Robot Miss Streak . | . . . Penetration Max . | . . . Secondary Targets . | . . . Shots Hit Robots . | . . . Core Hits . | . . . Critical Kills . | . . . Critical Parts Destroyed . | . . . Critical Strikes . | . . . Melee Attacks . | . . . Impact . | . . . Slashing . | . . . Piercing . | . . . Sneak Attacks . | . . . Combat Hostiles . | . . . Follow-up Attacks . | . . . Damage Inflicted . | . . . Guns . | . . . Cannons . | . . . Explosions . | . . . Melee . | . . . Ramming . | . . . Kinetic . | . . . Thermal . | . . . Explosive . | . . . Electromagnetic . | . . . Impact . | . . . Slashing . | . . . Piercing . | . . . Highest Corruption . | . . . Average Corruption . | . . . Corruption Purged . | . . . Overload Shots . | . . . Overflow Damage . | . . . Projectiles . | . . . Explosions . | . . . Melee . | . . . Knockbacks . | . . . Impact . | . . . Kinetic . | . . . Secondary . | . . . Self-Inflicted Damage . | . . . Shots . | . . . Rammed . | . . . Targets Rammed . | . . . Kicked . | . . . Crushed . | . . . Highest Temperature 5 | . . 5 Average Temperature 5 | . . 5 Received Heat Transfer 111 | . . 111 Siege Activations . | . . . Robots Corrupted . | . . . Combat Hostiles . | . . . Parts Fried . | . . . Impact Corruptions . | . . . Robots Melted . | . . . Combat Hostiles . | . . . Parts Melted . | . . . Heat Transferred . | . . . Parts Sabotaged . | . . . Parts Stolen . | . . . Parts Stripped . | . . . Power Chain Reactions . | . . . Missiles Intercepted . | . . . Alert | -11 -10 -9 ------- Run | Scr Mat Mat Peak Influence 80 | . 5 80 Initial 1 | . . 1 Average 31 | . . 50 Maximum Alert Level . | . . . Low Security (%) 100 | 100 100 100 Level 1 . | . . . Level 2 . | . . . Level 3 . | . . . Level 4 . | . . . Level 5 . | . . . High Security . | . . . Max Security . | . . . Squads Dispatched . | . . . Investigation . | . . . Extermination . | . . . Reinforcement . | . . . Assault . | . . . Garrison . | . . . Intercept . | . . . Construction Impeded . | . . . Haulers Reinforced . | . . . Active Scanning Responses . | . . . Cargo Convoy Interrupts . | . . . Stealth | -11 -10 -9 --------- Run | Scr Mat Mat Distress Signals 1 | . . 1 Communications Jammed . | . . . Distress Signals . | . . . Times Spotted 10 | . . 10 Peak Tracking Total 8 | . . 8 Tactical Retreats 1 | . . 1 Traps | -11 -10 -9 ------- Run | Scr Mat Mat Traps Triggered . | . . . Indirectly . | . . . Trap Hack Attempts . | . . . Triggered . | . . . Disarmed . | . . . Reprogrammed . | . . . Reused . | . . . Traps Extracted . | . . . Installed . | . . . Triggered . | . . . Machines | -11 -10 -9 ---------- Run | Scr Mat Mat Machines Disabled . | . . . Max in Single Turn . | . . . Machines Sabotaged . | . . . Garrisons Compromised . | . . . Overloaded Fab Kills . | . . . Fab Network Shutdowns . | . . . Hacking | -11 -10 -9 --------- Run | Scr Mat Mat Machines Accessed 4 | . 1 3 Terminals 4 | . 1 3 Fabricators . | . . . Repair Stations . | . . . Recycling Units . | . . . Scanalyzers . | . . . Garrison Access . | . . . Total Hacks 14 | . 3 11 Successful 4 | . 1 3 Failed 10 | . 2 8 Catastrophic 2 | . 1 1 Database Lockouts . | . . . Manual 14 | . 3 11 Terminals 14 | . 3 11 Fabricators . | . . . Repair Stations . | . . . Recycling Units . | . . . Scanalyzers . | . . . Garrison Access . | . . . Terminal Hacks 1 | . . 1 Part Schematic 1 | . . 1 Fabricator Hacks . | . . . Repair Station Hacks . | . . . Recycling Unit Hacks . | . . . Scanalyzer . | . . . Garrison Access Hacks . | . . . Unauthorized Hacks 3 | . 1 2 Terminals 3 | . 1 2 Botnet 3 | . 1 2 Fabricators . | . . . Repair Stations . | . . . Recycling Units . | . . . Scanalyzers . | . . . Garrison Access . | . . . Data Cores Recovered . | . . . Used . | . . . Hacking Detections 4 | . 1 3 Full Trace Events 2 | . 1 1 Feedback Events . | . . . Feedback Blocked . | . . . Robot Schematics Acquired . | . . . Robots Built . | . . . Matter . | . . . Time . | . . . Total Robot Build Rating . | . . . Part Schematics Acquired 1 | . . 1 Parts Built . | . . . Matter . | . . . Time . | . . . Total Part Build Rating . | . . . Parts Repaired . | . . . Time . | . . . Parts Recycled . | . . . Recycled Matter . | . . . Retrieved Matter . | . . . Retrieved Components . | . . . Parts Scanalyzed . | . . . Part Schematics Acquired . | . . . Parts Damaged . | . . . Bothacking | -11 -10 -9 ------------ Run | Scr Mat Mat Used RIF Installer . | . . . Robots Hacked . | . . . Non-combat . | . . . Combat . | . . . Robot Hacks Applied . | . . . Relay Couplers Released . | . . . Robots Rewired . | . . . Allies Hacked . | . . . Hacks Repelled . | . . . Allies | -11 -10 -9 -------- Run | Scr Mat Mat Total Allies . | . . . Largest Group . | . . . Highest-Rated Group . | . . . Highest-Rated Ally . | . . . Total Orders . | . . . Ally Attacks . | . . . Total Damage . | . . . Kills . | . . . Allies Corrupted . | . . . Allies Melted . | . . . Intel | -11 -10 -9 ------- Run | Scr Mat Mat Robot Analysis Total . | . . . Derelict Logs Recovered . | . . . Drone Launches . | . . . Drone Recoveries . | . . . Exploration | -11 -10 -9 ------------- Run | Scr Mat Mat Turns Passed 223 | 25 59 139 Spaces Moved 311 | 40 99 172 Core 311 | 40 99 172 Treads . | . . . Legs . | . . . Wheels . | . . . Hover . | . . . Flight . | . . . Fastest Speed 50 | 50 50 50 Average Speed 50 | 52 50 50 Slowest Speed 100 | 100 50 50 Overloaded Moves . | . . . Propulsion Burnouts . | . . . Robots Hopped . | . . . Cave-ins Triggered . | . . . Exploration Rate (%) 19 | 3 28 26 Regions Visited 2 Branch Regions . Pre-discovered Areas . | . . . Known Exits Taken . | . . . Unknown Exits Taken 2 | 1 1 . Scrap Searched . | . . . Spaces Dug . | . . . Terrain Destroyed . | . . . Melee . | . . . Projectile . | . . . AOE . | . . . Terrain Rammed . | . . . Walls Destroyed . | . . . Machines Disabled . | . . . Actions | -11 -10 -9 --------- Run | Scr Mat Mat Total 376 | 43 107 226 Wait 57 | . 7 50 Move 309 | 39 98 172 Hop . | . . . Pick Up 5 | 2 2 1 Fast Attach 2 | 1 . 1 Attach 1 | . . 1 Detach 1 | 1 . . Swap . | . . . Drop 1 | . . 1 Fire . | . . . Melee . | . . . Ram . | . . . Kick . | . . . Crush . | . . . Escape Stasis . | . . . Rewire . | . . . Trap . | . . . Miscellaneous . | . . . Route ------- -11/Scrapyard -10/Materials -9/Materials History --------- Turn | Location | Event 3 | -11/Scrapyard | Discovered new exit (range 15) 26 | -11/Scrapyard | Entered Materials 80 | -10/Materials | Discovered new exit (range 10) 85 | -10/Materials | Entered another Materials area 85 | -9/Materials | Evolved 2 slots: Propulsion x1, Utility x1 165 | -9/Materials | Core integrity fell below 50% 212 | -9/Materials | Core integrity fell below 20% 224 | -9/Materials | Destroyed by S-10 Pest with Light Assault Rifle Last Messages --------------- Trojan loaded successfully. Testing... Terminal linked with 0 systems. Awaiting botnet instructions. 00092_ Dropped Heat Sink. 00092_ Acquired Cooling System. 00093_ Connecting with Terminal... >>Trojan(Botnet) Trojan loaded successfully. Testing... Terminal linked with 1 system. Awaiting botnet instructions. 00150_ Critical hit (Burn: +37). 00157_ Acquired Propulsion Shielding. 00163_ K-01 Serf collects debris. 00165_ K-01 Serf destroyed. 00166_ Acquired 10 matter. 00167_ K-01 Serf collects debris. 00180_ Connecting with Terminal... 00223_ Ion Engine destroyed. Map ----- +----------------------------------------------------+ | ???????????????????????????????????????????????? | | ???????????????????????????????????????????????? | | ???????????????????????????????????????????????? | | ???????????????????????????????????????????????? | | ???????????????????????????????????????????????? | | ???????????????????????????????????????????????? | | ???????????????????????????????????????????????? | | ???????????????????????????????????????????????? | | ???????????????????????????????????????????????? | | ???????????????????????????????????????????????? | | ???????????????????????????????????????????????? | | ??????????# ??????????????????????????????????? | | ??????????# ??????????????????????????????????? | | ??????#"Y"# ????????????########?????????????? | | ?????? ]????????????# = #?????????????? | | ??????? ???????????# ! #?????????????? | | ???????"" ???????????# #?????????????? | | ??????""" ]][ ???????????# """" #????#####????? | | ????? """ ]][ ??????????# """" #??? ?????? | | ???? ][[ ??????????# """" #??? """"?????? | | ???? ###########+####+### """" ????? | | ??? !! # """" #??? | | ???? !! + #??? | | ????????#### # """ #??? | | ???????????######/#### ####+####### """ ???? | | ???????????# # #@ s #?? """ ????? | | ???????????# """ + s s #?? ????? | | ???????????# """"" #### #???#####????? | | ???????????# """"" #??# #????????????? | | ???????????# """"" "#??# """ """ #????????????? | | ???????????# """ T#??# """ """ #????????????? | | ???????????# "#??# """ """ #????????????? | | ???????????# #??# #????????????? | | ???????????#+####+####??#########??????????????? | | ???????????# #??# #????????????????????????????? | | ????######?# #??# #????????????????????????????? | | ????# === ?# #??# #????????????????????????????? | | ????# === !# #??# #????????????????????????????? | | ????# == # #### #????????????????????????????? | | ????# + #????????????????????????????? | | ????# # ######????????????????????????????? | | ????# # #????######???????????????????????? | | ##########?# #??? ????????????????????????? | | ?### ###? """ "???????????????????????? | | ? #! %=# """ "???????????????????????? | | ??"" """ # # """ """?????????????????????? | | ??"" """ + + #???????????????????? | | ??"" """ # # #???????????????????? | | ? # # #???????????????????? | | [ = ?## ##?###########???????????????????? | +----------------------------------------------------+ Best States ------------- Heat Dissipation 28 Energy Generation 10 Energy Capacity 250 Matter Stores 300 Matter Capacity 300 Sight Range 16 Terrain Scan Density 10 Propulsion Shielding 33 Evasion (%) 50 Item Schematics ----------------- Flight Unit | -9/Materials | Hacked Robot Schematics ------------------ None Fabricated ------------ Nothing Alien Tech Used ----------------- None Achievements -------------- None Challenges ------------ None Game ------ Seed SpreadMappingPit Manual? 0 Play Time 00:05:54 Cumulative 95.2 hours Start 2021.07.21 @ 22:24:12 End 2021.07.21 @ 22:27:47 Sessions 1 Manual Loads 0 Difficulty Rogue Special Mode None Game No. 67 Rogue 67 Adventurer 0 Explorer 0 Win Type - Total 1 Types 1/0/0/0/0/0/0/0/0 Lore% 54 Gallery% 59 Achievement% 52 Wizard Run 0 Options --------- ASCII 1 Keyboard 1 Movement Vi Keybinds 0 Fullscreen 2 Font 18/SmallcapsGlow Map View 76x50 Tactical HUD 1 Map Filters NONE Filters NONE Steam 1 RUN: 35d26d21-4684-47de-9308-18d3d8222cf8